[Event "Titled Tuesday Blitz October 11 Late 2022"]
[White "Erdogdu, Mert"]
[Black "Suder, Jakub"]
[WhiteFideId "6301495"]
[BlackFideId "1195310"]
[WhiteElo "2765"]
[BlackElo "2570"]
[Result "0-1"]
[Round "04"]
[TimeControl "180+1"]
[Date "2022.10.12"]
[WhiteClock "0:02:06"]
[BlackClock "0:02:15"]

1. e4 {[%clk 0:03:00]}  c5 {[%clk 0:02:59]} 2. Nf3 {[%clk 0:03:00]}  e6 {[%clk 0:02:58]} 3. d4 {[%clk 0:03:01]}  cxd4 {[%clk 0:02:58]} 4. Nxd4 {[%clk 0:03:02]}  Nc6 {[%clk 0:02:59]} 5. Nc3 {[%clk 0:03:02]}  Nf6 {[%clk 0:02:59]} 6. Ndb5 {[%clk 0:03:01]}  d6 {[%clk 0:02:58]} 7. Bf4 {[%clk 0:03:01]}  e5 {[%clk 0:02:59]} 8. Bg5 {[%clk 0:03:01]}  a6 {[%clk 0:02:59]} 9. Na3 {[%clk 0:03:01]}  Be6 {[%clk 0:02:59]} 10. Nc4 {[%clk 0:03:00]}  Rb8 {[%clk 0:02:59]} 11. Bxf6 {[%clk 0:03:00]}  Qxf6 {[%clk 0:02:59]} 12. Nd5 {[%clk 0:03:00]}  Bxd5 {[%clk 0:02:59]} 13. Qxd5 {[%clk 0:02:56]}  Nb4 {[%clk 0:02:56]} 14. Qd2 {[%clk 0:02:50]}  d5 {[%clk 0:02:56]} 15. exd5 {[%clk 0:02:47]}  Rd8 {[%clk 0:02:57]} 16. Ne3 {[%clk 0:02:41]}  Bc5 {[%clk 0:02:56]} 17. Bc4 {[%clk 0:02:35]}  Bxe3 {[%clk 0:02:56]} 18. fxe3 {[%clk 0:02:35]}  Qh4+ {[%clk 0:02:56]} 19. g3 {[%clk 0:02:30]}  Qxc4 {[%clk 0:02:55]} 20. O-O-O {[%clk 0:02:21]}  O-O {[%clk 0:02:48]} 21. b3 {[%clk 0:02:15]}  Qe4 {[%clk 0:02:34]} 22. d6 {[%clk 0:02:13]}  Rxd6 {[%clk 0:02:20]} 23. Qe2 {[%clk 0:02:08]}  Rfd8 {[%clk 0:02:17]} 24. Rxd6 {[%clk 0:02:06]}  Qxh1+ {[%clk 0:02:15]} 0-1


[Site "https://www.chess.com"]

[Event "Titled Tuesday Blitz October 11 Late 2022"]
[White "Ernst, Sipke"]
[Black "Weber, Samuel"]
[WhiteFideId "1004689"]
[BlackFideId "12924008"]
[WhiteElo "2438"]
[BlackElo "2215"]
[Result "1-0"]
[Round "04"]
[TimeControl "180+1"]
[Date "2022.10.12"]
[WhiteClock "0:02:21"]
[BlackClock "0:01:45"]

1. d4 {[%clk 0:03:00]}  Nf6 {[%clk 0:02:59]} 2. c4 {[%clk 0:03:00]}  c5 {[%clk 0:02:59]} 3. d5 {[%clk 0:03:00]}  g6 {[%clk 0:02:59]} 4. Nc3 {[%clk 0:03:00]}  e5 {[%clk 0:02:59]} 5. e4 {[%clk 0:03:00]}  d6 {[%clk 0:02:59]} 6. Bd3 {[%clk 0:03:00]}  Bg7 {[%clk 0:03:00]} 7. h3 {[%clk 0:02:59]}  a6 {[%clk 0:02:59]} 8. Nge2 {[%clk 0:03:00]}  O-O {[%clk 0:03:00]} 9. Bg5 {[%clk 0:02:55]}  h6 {[%clk 0:02:59]} 10. Be3 {[%clk 0:02:55]}  Kh7 {[%clk 0:02:57]} 11. a4 {[%clk 0:02:53]}  Nbd7 {[%clk 0:02:43]} 12. Qc2 {[%clk 0:02:51]}  b6 {[%clk 0:02:41]} 13. f3 {[%clk 0:02:48]}  Nh5 {[%clk 0:02:39]} 14. h4 {[%clk 0:02:46]}  Bf6 {[%clk 0:02:31]} 15. O-O-O {[%clk 0:02:34]}  Bxh4 {[%clk 0:02:25]} 16. g4 {[%clk 0:02:31]}  Nf4 {[%clk 0:02:22]} 17. Nxf4 {[%clk 0:02:24]}  exf4 {[%clk 0:02:21]} 18. Bxf4 {[%clk 0:02:24]}  Bg5 {[%clk 0:02:21]} 19. Qd2 {[%clk 0:02:25]}  Ne5 {[%clk 0:01:51]} 20. Bxg5 {[%clk 0:02:22]}  Nxd3+ {[%clk 0:01:51]} 21. Kb1 {[%clk 0:02:22]}  f6 {[%clk 0:01:45]} 22. Bxh6 {[%clk 0:02:21]} 1-0


[Site "https://www.chess.com"]

[Event "Titled Tuesday Blitz October 11 Late 2022"]
[White "Ezat, Mohamed"]
[Black "Yanchenko, Roman"]
[WhiteFideId "10600906"]
[BlackFideId "4137329"]
[WhiteElo "2567"]
[BlackElo "2758"]
[Result "0-1"]
[Round "04"]
[TimeControl "180+1"]
[Date "2022.10.12"]
[WhiteClock "0:01:21"]
[BlackClock "0:00:19"]

1. d4 {[%clk 0:03:00]}  d5 {[%clk 0:03:00]} 2. c4 {[%clk 0:03:00]}  c6 {[%clk 0:03:00]} 3. Nc3 {[%clk 0:03:00]}  Nf6 {[%clk 0:03:00]} 4. cxd5 {[%clk 0:03:01]}  cxd5 {[%clk 0:03:00]} 5. Bf4 {[%clk 0:03:01]}  Nc6 {[%clk 0:03:00]} 6. e3 {[%clk 0:03:02]}  e6 {[%clk 0:03:01]} 7. Bd3 {[%clk 0:03:02]}  Bd6 {[%clk 0:03:01]} 8. Bxd6 {[%clk 0:03:02]}  Qxd6 {[%clk 0:03:02]} 9. f4 {[%clk 0:03:03]}  Bd7 {[%clk 0:03:02]} 10. Nf3 {[%clk 0:03:03]}  O-O {[%clk 0:03:02]} 11. O-O {[%clk 0:03:03]}  Rfc8 {[%clk 0:03:02]} 12. Ne5 {[%clk 0:03:04]}  Be8 {[%clk 0:03:02]} 13. g4 {[%clk 0:03:03]}  Nd7 {[%clk 0:02:51]} 14. g5 {[%clk 0:03:00]}  f5 {[%clk 0:02:51]} 15. gxf6 {[%clk 0:02:59]}  Nxf6 {[%clk 0:02:49]} 16. Kh1 {[%clk 0:02:51]}  Ne7 {[%clk 0:02:43]} 17. Rg1 {[%clk 0:02:50]}  Nf5 {[%clk 0:02:36]} 18. Qe2 {[%clk 0:02:41]}  Rc7 {[%clk 0:02:31]} 19. Rg2 {[%clk 0:02:35]}  a6 {[%clk 0:02:13]} 20. Rag1 {[%clk 0:02:34]}  Rac8 {[%clk 0:02:13]} 21. h3 {[%clk 0:02:26]}  Bh5 {[%clk 0:02:10]} 22. Qf2 {[%clk 0:02:25]}  b5 {[%clk 0:02:07]} 23. a3 {[%clk 0:02:23]}  Qf8 {[%clk 0:01:42]} 24. Rg5 {[%clk 0:02:18]}  Nd6 {[%clk 0:00:58]} 25. f5 {[%clk 0:02:08]}  exf5 {[%clk 0:00:53]} 26. Qh4 {[%clk 0:01:56]}  Qe8 {[%clk 0:00:29]} 27. Bxf5 {[%clk 0:01:47]}  Nxf5 {[%clk 0:00:28]} 28. Rxf5 {[%clk 0:01:47]}  Bg6 {[%clk 0:00:27]} 29. Rxf6 {[%clk 0:01:33]}  gxf6 {[%clk 0:00:27]} 30. Nxd5 {[%clk 0:01:32]}  fxe5 {[%clk 0:00:21]} 31. Nf6+ {[%clk 0:01:32]}  Kg7 {[%clk 0:00:22]} 32. Nxe8+ {[%clk 0:01:30]}  Rxe8 {[%clk 0:00:22]} 33. d5 {[%clk 0:01:21]}  Rc2 {[%clk 0:00:19]} 0-1


[Site "https://www.chess.com"]

[Event "Titled Tuesday Blitz October 11 Late 2022"]
[White "Fernandez De La Vara, Arnaldo"]
[Black "Mazurkiewicz, Michal"]
[WhiteFideId "3518388"]
[BlackFideId "1124943"]
[WhiteElo "2662"]
[BlackElo "2462"]
[Result "1-0"]
[Round "04"]
[TimeControl "180+1"]
[Date "2022.10.12"]
[WhiteClock "0:00:39"]
[BlackClock "0:00:04"]

1. Nf3 {[%clk 0:03:00]}  Nf6 {[%clk 0:02:59]} 2. b3 {[%clk 0:03:01]}  g6 {[%clk 0:02:59]} 3. Bb2 {[%clk 0:03:02]}  Bg7 {[%clk 0:03:00]} 4. g3 {[%clk 0:03:03]}  O-O {[%clk 0:03:00]} 5. Bg2 {[%clk 0:03:03]}  d6 {[%clk 0:03:01]} 6. d4 {[%clk 0:03:04]}  Nbd7 {[%clk 0:03:01]} 7. O-O {[%clk 0:03:04]}  Re8 {[%clk 0:02:53]} 8. c4 {[%clk 0:03:04]}  c6 {[%clk 0:02:53]} 9. Nc3 {[%clk 0:03:03]}  e5 {[%clk 0:02:54]} 10. e4 {[%clk 0:03:03]}  a5 {[%clk 0:02:46]} 11. Qc2 {[%clk 0:02:58]}  exd4 {[%clk 0:02:42]} 12. Nxd4 {[%clk 0:02:59]}  Nc5 {[%clk 0:02:42]} 13. Rad1 {[%clk 0:02:57]}  Bg4 {[%clk 0:02:33]} 14. Rd2 {[%clk 0:02:46]}  Qb6 {[%clk 0:02:27]} 15. h3 {[%clk 0:02:44]}  Bd7 {[%clk 0:02:21]} 16. Rfd1 {[%clk 0:02:41]}  Rad8 {[%clk 0:02:15]} 17. Nde2 {[%clk 0:02:22]}  Bc8 {[%clk 0:01:10]} 18. Ba3 {[%clk 0:02:06]}  Qc7 {[%clk 0:00:30]} 19. g4 {[%clk 0:01:50]}  Qe7 {[%clk 0:00:25]} 20. Ng3 {[%clk 0:01:49]}  b6 {[%clk 0:00:22]} 21. Bb2 {[%clk 0:01:44]}  h5 {[%clk 0:00:11]} 22. f3 {[%clk 0:01:36]}  hxg4 {[%clk 0:00:10]} 23. hxg4 {[%clk 0:01:37]}  Qe5 {[%clk 0:00:10]} 24. Nd5 {[%clk 0:01:28]}  Qxg3 {[%clk 0:00:09]} 25. Nxf6+ {[%clk 0:01:29]}  Bxf6 {[%clk 0:00:09]} 26. Bxf6 {[%clk 0:01:29]}  Rd7 {[%clk 0:00:08]} 27. Qc3 {[%clk 0:01:07]}  Ne6 {[%clk 0:00:08]} 28. Qe3 {[%clk 0:01:01]}  Nf4 {[%clk 0:00:07]} 29. Kf1 {[%clk 0:00:50]}  d5 {[%clk 0:00:08]} 30. e5 {[%clk 0:00:44]}  Ba6 {[%clk 0:00:07]} 31. Qf2 {[%clk 0:00:39]}  Qxg2+ {[%clk 0:00:06]} 32. Qxg2 {[%clk 0:00:39]}  Nxg2 {[%clk 0:00:06]} 33. Kxg2 {[%clk 0:00:40]}  Rc7 {[%clk 0:00:04]} 34. Rh1 {[%clk 0:00:39]} 1-0


[Site "https://www.chess.com"]

[Event "Titled Tuesday Blitz October 11 Late 2022"]
[White "Gasparyan, David"]
[Black "Poltorak, Sebastian"]
[WhiteFideId "13311980"]
[BlackFideId "1199498"]
[WhiteElo "2352"]
[BlackElo "2232"]
[Result "0-1"]
[Round "04"]
[TimeControl "180+1"]
[Date "2022.10.12"]
[WhiteClock "0:00:04"]
[BlackClock "0:01:34"]

1. d4 {[%clk 0:03:00]}  Nf6 {[%clk 0:03:00]} 2. Nf3 {[%clk 0:03:00]}  d5 {[%clk 0:03:00]} 3. e3 {[%clk 0:03:01]}  e6 {[%clk 0:03:00]} 4. Bd3 {[%clk 0:03:01]}  c5 {[%clk 0:03:00]} 5. c3 {[%clk 0:03:02]}  Nc6 {[%clk 0:02:59]} 6. O-O {[%clk 0:03:02]}  Be7 {[%clk 0:02:57]} 7. Nbd2 {[%clk 0:03:01]}  O-O {[%clk 0:02:57]} 8. Qe2 {[%clk 0:02:58]}  b6 {[%clk 0:02:57]} 9. Rd1 {[%clk 0:02:50]}  Bb7 {[%clk 0:02:57]} 10. Nf1 {[%clk 0:02:50]}  Rc8 {[%clk 0:02:57]} 11. Ng3 {[%clk 0:02:48]}  Qc7 {[%clk 0:02:53]} 12. Bd2 {[%clk 0:02:43]}  e5 {[%clk 0:02:52]} 13. dxe5 {[%clk 0:02:40]}  Nxe5 {[%clk 0:02:52]} 14. Bf5 {[%clk 0:02:35]}  Rcd8 {[%clk 0:02:50]} 15. Nxe5 {[%clk 0:01:51]}  Qxe5 {[%clk 0:02:51]} 16. Qd3 {[%clk 0:01:51]}  Bd6 {[%clk 0:02:37]} 17. Re1 {[%clk 0:01:38]}  Rfe8 {[%clk 0:02:30]} 18. Rad1 {[%clk 0:01:31]}  Ne4 {[%clk 0:02:29]} 19. Qc2 {[%clk 0:01:20]}  Bc7 {[%clk 0:02:25]} 20. c4 {[%clk 0:00:58]}  g6 {[%clk 0:02:17]} 21. Bg4 {[%clk 0:00:52]}  f5 {[%clk 0:02:14]} 22. Bf3 {[%clk 0:00:50]}  dxc4 {[%clk 0:02:07]} 23. Bxe4 {[%clk 0:00:37]}  fxe4 {[%clk 0:02:04]} 24. Qxc4+ {[%clk 0:00:30]}  Qd5 {[%clk 0:02:03]} 25. Qc3 {[%clk 0:00:20]}  Be5 {[%clk 0:02:01]} 26. Qa3 {[%clk 0:00:19]}  a6 {[%clk 0:01:57]} 27. b3 {[%clk 0:00:18]}  Qd3 {[%clk 0:01:53]} 28. Nf1 {[%clk 0:00:15]}  c4 {[%clk 0:01:46]} 29. Qc1 {[%clk 0:00:13]}  c3 {[%clk 0:01:45]} 30. Bxc3 {[%clk 0:00:13]}  Qxc3 {[%clk 0:01:45]} 31. Qb1 {[%clk 0:00:11]}  Rd3 {[%clk 0:01:43]} 32. Rc1 {[%clk 0:00:11]}  Qa5 {[%clk 0:01:39]} 33. Rc4 {[%clk 0:00:10]}  Red8 {[%clk 0:01:38]} 34. Rec1 {[%clk 0:00:10]}  Qd5 {[%clk 0:01:35]} 35. Qc2 {[%clk 0:00:09]}  Rd1 {[%clk 0:01:34]} 36. Rxd1 {[%clk 0:00:06]}  Qxd1 {[%clk 0:01:35]} 37. g3 {[%clk 0:00:02]}  Qxc2 {[%clk 0:01:35]} 38. Rxc2 {[%clk 0:00:03]}  Rc8 {[%clk 0:01:34]} 39. Kg2 {[%clk 0:00:04]}  Rxc2 {[%clk 0:01:34]} 0-1


[Site "https://www.chess.com"]

[Event "Titled Tuesday Blitz October 11 Late 2022"]
[White "Golubev, Mikhail"]
[Black "Tarasova, Viktoriya"]
[WhiteFideId "14100983"]
[BlackFideId "4175840"]
[WhiteElo "2562"]
[BlackElo "2381"]
[Result "0-1"]
[Round "04"]
[TimeControl "180+1"]
[Date "2022.10.12"]
[WhiteClock "0:00:01"]
[BlackClock "0:00:03"]

1. e4 {[%clk 0:03:00]}  e5 {[%clk 0:02:59]} 2. d4 {[%clk 0:03:00]}  exd4 {[%clk 0:02:59]} 3. Qxd4 {[%clk 0:03:00]}  Nc6 {[%clk 0:02:58]} 4. Qd3 {[%clk 0:03:00]}  Nf6 {[%clk 0:02:56]} 5. Nc3 {[%clk 0:02:59]}  Bb4 {[%clk 0:02:54]} 6. Bd2 {[%clk 0:03:00]}  O-O {[%clk 0:02:52]} 7. O-O-O {[%clk 0:02:59]}  Re8 {[%clk 0:02:50]} 8. Nge2 {[%clk 0:02:59]}  d6 {[%clk 0:02:49]} 9. Bg5 {[%clk 0:02:40]}  h6 {[%clk 0:02:41]} 10. Bh4 {[%clk 0:02:28]}  Ne5 {[%clk 0:02:17]} 11. Qg3 {[%clk 0:01:06]}  c6 {[%clk 0:01:37]} 12. f4 {[%clk 0:01:01]}  Ng6 {[%clk 0:01:35]} 13. e5 {[%clk 0:00:22]}  Nxh4 {[%clk 0:01:26]} 14. Qxh4 {[%clk 0:00:22]}  Ng4 {[%clk 0:00:36]} 15. Qg3 {[%clk 0:00:17]}  Qb6 {[%clk 0:00:15]} 16. exd6 {[%clk 0:00:16]}  Bd7 {[%clk 0:00:15]} 17. Nd4 {[%clk 0:00:10]}  Re3 {[%clk 0:00:10]} 18. Qh4 {[%clk 0:00:10]}  Bxc3 {[%clk 0:00:10]} 19. bxc3 {[%clk 0:00:10]}  Rxc3 {[%clk 0:00:09]} 20. Qe7 {[%clk 0:00:08]}  Rd8 {[%clk 0:00:06]} 21. Nb3 {[%clk 0:00:06]}  Nf6 {[%clk 0:00:06]} 22. Bd3 {[%clk 0:00:05]}  Re8 {[%clk 0:00:06]} 23. Rhe1 {[%clk 0:00:03]}  Rxe7 {[%clk 0:00:06]} 24. dxe7 {[%clk 0:00:04]}  Be8 {[%clk 0:00:06]} 25. Bf1 {[%clk 0:00:03]}  Re3 {[%clk 0:00:05]} 26. Be2 {[%clk 0:00:01]}  Qb4 {[%clk 0:00:03]} 0-1


[Site "https://www.chess.com"]

[Event "Titled Tuesday Blitz October 11 Late 2022"]
[White "Hansen, Eric"]
[Black "Jacobson, Brandon"]
[WhiteFideId "2606771"]
[BlackFideId "30901561"]
[WhiteElo "2568"]
[BlackElo "2451"]
[Result "1-0"]
[Round "04"]
[TimeControl "180+1"]
[Date "2022.10.11"]
[WhiteClock "0:01:32"]
[BlackClock "0:00:12"]

1. d4 {[%clk 0:03:00]}  Nf6 {[%clk 0:03:00]} 2. c4 {[%clk 0:03:00]}  g6 {[%clk 0:03:00]} 3. Nf3 {[%clk 0:02:57]}  Bg7 {[%clk 0:03:00]} 4. Nc3 {[%clk 0:02:53]}  O-O {[%clk 0:03:00]} 5. Bf4 {[%clk 0:02:48]}  d6 {[%clk 0:02:41]} 6. h3 {[%clk 0:02:45]}  Bf5 {[%clk 0:02:27]} 7. e3 {[%clk 0:02:43]}  Ne4 {[%clk 0:02:27]} 8. Rc1 {[%clk 0:02:23]}  c5 {[%clk 0:02:12]} 9. Be2 {[%clk 0:02:22]}  Nc6 {[%clk 0:01:42]} 10. O-O {[%clk 0:02:21]}  Nxc3 {[%clk 0:01:43]} 11. bxc3 {[%clk 0:02:22]}  Na5 {[%clk 0:01:36]} 12. Qa4 {[%clk 0:02:18]}  b6 {[%clk 0:01:33]} 13. Rfd1 {[%clk 0:02:18]}  Qe8 {[%clk 0:01:29]} 14. Qa3 {[%clk 0:02:18]}  e5 {[%clk 0:01:24]} 15. Bh2 {[%clk 0:02:17]}  Qe7 {[%clk 0:01:13]} 16. Nd2 {[%clk 0:02:18]}  Rac8 {[%clk 0:01:05]} 17. Nb3 {[%clk 0:02:16]}  Nxb3 {[%clk 0:00:56]} 18. axb3 {[%clk 0:02:13]}  exd4 {[%clk 0:00:57]} 19. cxd4 {[%clk 0:02:14]}  Bxd4 {[%clk 0:00:57]} 20. exd4 {[%clk 0:02:14]}  Qxe2 {[%clk 0:00:57]} 21. Bxd6 {[%clk 0:02:14]}  Rfd8 {[%clk 0:00:54]} 22. dxc5 {[%clk 0:02:01]}  bxc5 {[%clk 0:00:53]} 23. Re1 {[%clk 0:01:59]}  Qd3 {[%clk 0:00:33]} 24. Bxc5 {[%clk 0:01:56]}  Rb8 {[%clk 0:00:30]} 25. Re3 {[%clk 0:01:53]}  Qd2 {[%clk 0:00:30]} 26. Rce1 {[%clk 0:01:50]}  Be6 {[%clk 0:00:26]} 27. Bxa7 {[%clk 0:01:45]}  Ra8 {[%clk 0:00:24]} 28. Qc5 {[%clk 0:01:43]}  Rac8 {[%clk 0:00:17]} 29. Qe5 {[%clk 0:01:38]}  Rd7 {[%clk 0:00:12]} 30. Bb6 {[%clk 0:01:34]}  Qb4 {[%clk 0:00:12]} 31. Bd4 {[%clk 0:01:32]} 1-0


[Site "https://www.chess.com"]

[Event "Titled Tuesday Blitz October 11 Late 2022"]
[White "Haszon, David"]
[Black "Fernandez Hernandez, Gerardo"]
[WhiteFideId "733610"]
[BlackFideId "2207400"]
[WhiteElo "2211"]
[BlackElo "2149"]
[Result "1-0"]
[Round "04"]
[TimeControl "180+1"]
[Date "2022.10.12"]
[WhiteClock "0:01:00"]
[BlackClock "0:00:02"]

1. e4 {[%clk 0:02:59]}  e6 {[%clk 0:02:59]} 2. d4 {[%clk 0:02:55]}  d5 {[%clk 0:03:00]} 3. Nd2 {[%clk 0:02:55]}  Nc6 {[%clk 0:02:59]} 4. Ngf3 {[%clk 0:02:55]}  Nf6 {[%clk 0:02:59]} 5. e5 {[%clk 0:02:56]}  Nd7 {[%clk 0:02:59]} 6. Bd3 {[%clk 0:02:56]}  f6 {[%clk 0:02:57]} 7. Ng5 {[%clk 0:02:57]}  fxg5 {[%clk 0:02:33]} 8. Qh5+ {[%clk 0:02:56]}  g6 {[%clk 0:02:34]} 9. Bxg6+ {[%clk 0:02:54]}  hxg6 {[%clk 0:02:34]} 10. Qxg6+ {[%clk 0:02:54]}  Ke7 {[%clk 0:02:29]} 11. Ne4 {[%clk 0:02:31]}  dxe4 {[%clk 0:01:45]} 12. Bxg5+ {[%clk 0:02:30]}  Nf6 {[%clk 0:01:44]} 13. Bxf6+ {[%clk 0:02:29]}  Kd7 {[%clk 0:01:42]} 14. Bxd8 {[%clk 0:02:27]}  Nxd8 {[%clk 0:01:31]} 15. h4 {[%clk 0:02:07]}  b6 {[%clk 0:01:07]} 16. h5 {[%clk 0:01:49]}  Bh6 {[%clk 0:01:02]} 17. Qf6 {[%clk 0:01:37]}  Rh7 {[%clk 0:00:52]} 18. Qg6 {[%clk 0:01:36]}  Rh8 {[%clk 0:00:52]} 19. g4 {[%clk 0:01:37]}  Bb7 {[%clk 0:00:37]} 20. g5 {[%clk 0:01:33]}  Bf8 {[%clk 0:00:20]} 21. h6 {[%clk 0:01:24]}  Nc6 {[%clk 0:00:19]} 22. O-O-O {[%clk 0:01:19]}  Ne7 {[%clk 0:00:18]} 23. Qf7 {[%clk 0:01:15]}  Bd5 {[%clk 0:00:12]} 24. h7 {[%clk 0:01:09]}  Kc6 {[%clk 0:00:10]} 25. Qf6 {[%clk 0:01:04]}  Rxh7 {[%clk 0:00:04]} 26. Rxh7 {[%clk 0:01:04]}  Nf5 {[%clk 0:00:04]} 27. g6 {[%clk 0:01:00]}  Be7 {[%clk 0:00:03]} 28. Rxe7 {[%clk 0:01:00]}  Nxe7 {[%clk 0:00:02]} 29. Qxe7 {[%clk 0:01:00]}  Rg8 {[%clk 0:00:02]} 30. g7 {[%clk 0:01:00]} 1-0


[Site "https://www.chess.com"]

[Event "Titled Tuesday Blitz October 11 Late 2022"]
[White "Horobetz, Graham"]
[Black "Riehle, Marco"]
[WhiteFideId "2047322"]
[BlackFideId "12904392"]
[WhiteElo "2560"]
[BlackElo "2736"]
[Result "0-1"]
[Round "04"]
[TimeControl "180+1"]
[Date "2022.10.12"]
[WhiteClock "0:00:03"]
[BlackClock "0:01:29"]

1. e4 {[%clk 0:03:00]}  e5 {[%clk 0:02:59]} 2. Nf3 {[%clk 0:03:00]}  Nf6 {[%clk 0:02:58]} 3. d4 {[%clk 0:02:58]}  Nxe4 {[%clk 0:02:58]} 4. Bd3 {[%clk 0:02:58]}  Nc6 {[%clk 0:02:56]} 5. dxe5 {[%clk 0:02:51]}  Nc5 {[%clk 0:02:53]} 6. O-O {[%clk 0:02:26]}  d6 {[%clk 0:02:49]} 7. Bg5 {[%clk 0:02:17]}  Be7 {[%clk 0:02:46]} 8. Bxe7 {[%clk 0:02:06]}  Qxe7 {[%clk 0:02:47]} 9. exd6 {[%clk 0:02:03]}  Qxd6 {[%clk 0:02:48]} 10. Re1+ {[%clk 0:01:42]}  Be6 {[%clk 0:02:47]} 11. Bb5 {[%clk 0:01:35]}  O-O-O {[%clk 0:02:42]} 12. Qxd6 {[%clk 0:01:33]}  Rxd6 {[%clk 0:02:43]} 13. Nbd2 {[%clk 0:01:25]}  Rhd8 {[%clk 0:02:34]} 14. Nc4 {[%clk 0:01:18]}  Bxc4 {[%clk 0:02:28]} 15. Bxc4 {[%clk 0:01:19]}  f6 {[%clk 0:02:27]} 16. c3 {[%clk 0:01:19]}  a6 {[%clk 0:02:24]} 17. g3 {[%clk 0:01:18]}  Nd3 {[%clk 0:02:22]} 18. Bxd3 {[%clk 0:01:15]}  Rxd3 {[%clk 0:02:23]} 19. Kg2 {[%clk 0:01:13]}  Kb8 {[%clk 0:02:16]} 20. Re4 {[%clk 0:01:13]}  Ka7 {[%clk 0:02:14]} 21. Rae1 {[%clk 0:01:12]}  a5 {[%clk 0:02:12]} 22. h4 {[%clk 0:01:07]}  b5 {[%clk 0:02:11]} 23. Re6 {[%clk 0:01:03]}  Kb7 {[%clk 0:02:09]} 24. h5 {[%clk 0:01:02]}  R8d6 {[%clk 0:01:59]} 25. Rxd6 {[%clk 0:00:58]}  Rxd6 {[%clk 0:02:00]} 26. Re2 {[%clk 0:00:57]}  a4 {[%clk 0:01:58]} 27. g4 {[%clk 0:00:55]}  Rd3 {[%clk 0:01:55]} 28. Rd2 {[%clk 0:00:43]}  Rxd2 {[%clk 0:01:54]} 29. Nxd2 {[%clk 0:00:44]}  Ne5 {[%clk 0:01:54]} 30. Kg3 {[%clk 0:00:35]}  c5 {[%clk 0:01:51]} 31. Ne4 {[%clk 0:00:31]}  Kc6 {[%clk 0:01:51]} 32. h6 {[%clk 0:00:31]}  gxh6 {[%clk 0:01:52]} 33. Nxf6 {[%clk 0:00:31]}  Nd3 {[%clk 0:01:51]} 34. f4 {[%clk 0:00:10]}  Nxb2 {[%clk 0:01:49]} 35. Nxh7 {[%clk 0:00:10]}  b4 {[%clk 0:01:43]} 36. cxb4 {[%clk 0:00:10]}  cxb4 {[%clk 0:01:44]} 37. g5 {[%clk 0:00:06]}  hxg5 {[%clk 0:01:42]} 38. fxg5 {[%clk 0:00:07]}  Nc4 {[%clk 0:01:32]} 39. g6 {[%clk 0:00:06]}  Nd6 {[%clk 0:01:31]} 40. Kf4 {[%clk 0:00:04]}  Ne8 {[%clk 0:01:31]} 41. Ke5 {[%clk 0:00:02]}  b3 {[%clk 0:01:30]} 42. Nf6 {[%clk 0:00:02]}  Nxf6 {[%clk 0:01:29]} 43. Kxf6 {[%clk 0:00:03]}  bxa2 {[%clk 0:01:29]} 0-1


[Site "https://www.chess.com"]

[Event "Titled Tuesday Blitz October 11 Late 2022"]
[White "Ismagilov, Damir"]
[Black "Krzywda, Andrzej"]
[WhiteFideId "34199982"]
[BlackFideId "1114565"]
[WhiteElo "2106"]
[BlackElo "2149"]
[Result "1-0"]
[Round "04"]
[TimeControl "180+1"]
[Date "2022.10.12"]
[WhiteClock "0:00:18"]
[BlackClock "0:00:08"]

1. d4 {[%clk 0:03:00]}  Nf6 {[%clk 0:02:59]} 2. Bf4 {[%clk 0:03:01]}  g6 {[%clk 0:02:57]} 3. e3 {[%clk 0:03:01]}  Bg7 {[%clk 0:02:57]} 4. h3 {[%clk 0:02:59]}  d6 {[%clk 0:02:57]} 5. Nf3 {[%clk 0:02:59]}  O-O {[%clk 0:02:58]} 6. c4 {[%clk 0:03:00]}  c5 {[%clk 0:02:49]} 7. Nc3 {[%clk 0:02:56]}  cxd4 {[%clk 0:02:46]} 8. exd4 {[%clk 0:02:51]}  d5 {[%clk 0:02:42]} 9. c5 {[%clk 0:02:37]}  Nc6 {[%clk 0:02:42]} 10. Be2 {[%clk 0:02:35]}  Ne4 {[%clk 0:02:41]} 11. O-O {[%clk 0:02:33]}  b6 {[%clk 0:02:32]} 12. Qa4 {[%clk 0:02:06]}  Bd7 {[%clk 0:02:17]} 13. Bb5 {[%clk 0:02:01]}  Nxc3 {[%clk 0:01:55]} 14. bxc3 {[%clk 0:01:57]}  Rc8 {[%clk 0:01:55]} 15. Bxc6 {[%clk 0:01:44]}  Rxc6 {[%clk 0:01:48]} 16. Qxa7 {[%clk 0:01:35]}  bxc5 {[%clk 0:01:46]} 17. Ne5 {[%clk 0:01:29]}  Bxe5 {[%clk 0:01:45]} 18. Bxe5 {[%clk 0:01:27]}  f6 {[%clk 0:01:33]} 19. Bg3 {[%clk 0:01:19]}  Qc8 {[%clk 0:01:33]} 20. Rfe1 {[%clk 0:01:00]}  Re8 {[%clk 0:01:33]} 21. Qa3 {[%clk 0:00:50]}  e6 {[%clk 0:01:23]} 22. Qb2 {[%clk 0:00:39]}  Qa6 {[%clk 0:01:13]} 23. Qd2 {[%clk 0:00:39]}  cxd4 {[%clk 0:01:06]} 24. cxd4 {[%clk 0:00:39]}  Rec8 {[%clk 0:01:04]} 25. h4 {[%clk 0:00:39]}  Rc2 {[%clk 0:01:02]} 26. Qf4 {[%clk 0:00:39]}  Kf7 {[%clk 0:00:58]} 27. h5 {[%clk 0:00:37]}  Qd3 {[%clk 0:00:57]} 28. Qd6 {[%clk 0:00:34]}  R8c7 {[%clk 0:00:48]} 29. Qb6 {[%clk 0:00:34]}  R7c6 {[%clk 0:00:45]} 30. Qb7 {[%clk 0:00:34]}  Ke8 {[%clk 0:00:42]} 31. Qb8+ {[%clk 0:00:21]}  Rc8 {[%clk 0:00:39]} 32. Qf4 {[%clk 0:00:21]}  Qf5 {[%clk 0:00:37]} 33. Qh6 {[%clk 0:00:19]}  Qxh5 {[%clk 0:00:35]} 34. Qg7 {[%clk 0:00:19]}  g5 {[%clk 0:00:10]} 35. Bd6 {[%clk 0:00:18]}  Qf7 {[%clk 0:00:09]} 36. Qh8+ {[%clk 0:00:18]}  Qf8 {[%clk 0:00:08]} 37. Qxf8# {[%clk 0:00:18]} 1-0


[Site "https://www.chess.com"]